bitfinex/quotes_SOLUSD_20250617
["timestamp","ask_amount","ask_price","bid_price","bid_amount"]
[1750160146264,12.03774232,150.83,150.79,5.40774306]
[1750160147769,5.40774306,150.82,150.78,12.03974161]
[1750160147970,5.40774306,150.82,150.78,6.63199855]
[1750160148181,6.62999926,150.83,150.78,6.63199855]
[1750160148390,5.40774306,150.82,150.78,6.63199855]
[1750160148762,5.40774306,150.82,150.78,12.03974161]
[1750160149205,12.03774232,150.83,150.78,12.03974161]
[1750160150083,5.40774306,150.83,150.79,5.40774306]
[1750160150294,5.40774306,150.83,150.78,6.63199855]
[1750160150484,5.40774306,150.83,150.79,5.40774306]
[1750160150685,12.03775047,150.83,150.78,12.03974161]
[1750160153307,5.40774306,150.79,150.74,6.63360321]
[1750160153487,5.40774306,150.79,150.74,12.04134627]
[1750160154072,5.40774306,150.79,150.75,5.40774306]
[1750160154290,5.40774306,150.79,150.75,12.04107258]
[1750160154589,12.03910135,150.8,150.75,12.04107258]
[1750160157697,5.40774306,150.79,150.75,12.04107258]
[1750160158990,5.40774306,150.79,150.75,6.63332952]
[1750160159193,5.40774306,150.79,150.75,12.04107258]
[1750160159906,12.03910301,150.8,150.76,5.40774306]
[1750160160290,12.03910301,150.8,150.76,4.40774306]
[1750160161990,5.40774306,150.79,150.75,5.40774306]
[1750160162191,5.40774306,150.79,150.74,6.63393923]
[1750160162499,5.40774306,150.79,150.75,5.40774306]
[1750160162685,5.40774306,150.79,150.74,6.63393923]
[1750160162686,5.40774306,150.78,150.74,6.63393923]
[1750160162886,5.40774306,150.78,150.74,12.04168229]
[1750160163102,1.6413,150.82,150.72,62.82911265]
[1750160163103,5.40774306,150.77,150.73,18.14203517]
[1750160163474,5.40774306,150.77,150.73,11.50774306]
[1750160163678,5.40774306,150.76,150.73,6.1]
[1750160164991,28.61729212,150.8,150.73,6.1]
[1750160165194,5.40774306,150.76,150.73,6.1]
[1750160166081,28.61729212,150.8,150.73,6.1]
[1750160166409,5.40774306,150.79,150.75,5.40774306]
[1750160166902,5.40774306,150.78,150.74,5.40774306]
[1750160167109,5.40774306,150.78,150.73,18.14200554]
[1750160167284,12.04004292,150.78,150.73,18.14200554]
[1750160167605,5.40774306,150.77,150.73,6.1]
[1750160167908,5.40774306,150.76,150.73,6.1]
[1750160168596,5.40774306,150.76,150.73,5.1]
[1750160170509,12.0408152,150.76,150.73,5.1]
[1750160171082,5.40774306,150.75,150.73,5.1]
[1750160171888,12.0414543,150.75,150.73,5.1]
[1750160172796,5.40774306,150.74,150.67,12.04456806]
[1750160172986,5.40774306,150.71,150.67,6.636825]
[1750160173184,5.40774306,150.71,150.67,12.04456806]
[1750160173380,5.40774306,150.71,150.67,5.40774306]
[1750160173919,12.04317143,150.71,150.67,5.40774306]
[1750160174510,12.04317143,150.71,150.66,12.7373437]
[1750160174511,5.40774306,150.69,150.66,6.1]
[1750160175101,5.40774306,150.68,150.66,6.1]
[1750160176914,5.40774306,150.67,150.63,12.0464083]
[1750160177085,5.40774306,150.67,150.63,6.63866524]
[1750160177481,5.40774306,150.67,150.63,12.0464083]
[1750160178699,5.40774306,150.66,150.62,12.04696367]
[1750160179212,5.40774306,150.66,150.62,6.63922061]
[1750160179414,5.40774306,150.66,150.62,5.40774306]
[1750160179997,5.40774306,150.65,150.61,18.14729525]
[1750160180520,5.40774306,150.66,150.62,5.40774306]
[1750160182226,32.63570006,150.7,150.65,5.40774306]
[1750160182403,5.40774306,150.69,150.65,5.40774306]
[1750160182807,5.40774306,150.68,150.64,5.40774306]
[1750160183327,5.40774306,150.68,150.63,6.63861757]
[1750160183328,5.40774306,150.67,150.63,12.04636063]
[1750160183617,32.63570006,150.7,150.63,12.04636063]
[1750160183803,5.40774306,150.68,150.64,5.40774306]
[1750160184006,32.63576483,150.7,150.64,5.40774306]
[1750160184319,6.63576483,150.7,150.65,5.40774306]
[1750160184516,12.04350789,150.7,150.66,5.40774306]
[1750160184727,12.04350789,150.7,150.62,24.87988587]
[1750160184728,12.04350789,150.7,150.65,5.40774306]
[1750160185480,5.40774306,150.69,150.65,12.04545046]
[1750160185796,13.59138771,150.71,150.65,6.6377074]
[1750160186034,5.40774306,150.7,150.66,5.40774306]
[1750160186220,8.18364465,150.71,150.66,5.40774306]
[1750160186417,5.40774306,150.7,150.65,6.6377074]
[1750160186732,5.40774306,150.7,150.66,5.40774306]
[1750160187629,1.5483,150.71,150.66,12.04519309]
[1750160187830,11.40944306,150.72,150.67,5.40774306]
[1750160187995,8.28662922,150.75,150.69,5.40774306]
[1750160188196,8.28662922,150.75,150.67,5.40774306]
[1750160188197,5.40774306,150.72,150.67,5.40774306]
[1750160188408,5.40774306,150.72,150.66,6.63745003]
[1750160188409,5.40774306,150.72,150.68,5.40774306]
[1750160188614,34.28662922,150.75,150.69,5.40774306]
[1750160188824,5.40774306,150.73,150.69,5.40774306]
[1750160190129,34.28635583,150.75,150.71,5.40774306]
[1750160190423,5.40774306,150.73,150.68,6.6365206]
[1750160190601,5.40774306,150.73,150.69,5.40774306]
[1750160191004,8.28635583,150.75,150.64,5.40774306]
[1750160191005,5.40774306,150.71,150.67,31.40774306]
[1750160191203,5.40774306,150.71,150.67,12.04458329]
[1750160191403,5.40774306,150.72,150.68,5.40774306]
[1750160192635,6.63481213,150.73,150.69,5.40774306]
[1750160192636,5.40774306,150.73,150.69,5.40774306]
[1750160192818,12.0418612,150.74,150.7,5.40774306]
[1750160193153,5.40774306,150.75,150.71,5.40774306]
[1750160193300,18.32535524,150.76,150.72,5.40774306]
[1750160193501,6.2844,150.76,150.72,12.04250981]
[1750160193729,6.63275572,150.77,150.72,12.04250981]
[1750160193730,32.63226841,150.78,150.72,12.04250981]
[1750160193908,38.04001147,150.78,150.73,5.40774306]
[1750160194905,38.04001147,150.78,150.74,5.40774306]
[1750160195106,38.04001147,150.78,150.72,6.63476675]
[1750160195345,5.40774306,150.77,150.73,5.40774306]
[1750160195929,5.40774306,150.77,150.72,12.04250981]
[1750160196406,5.40774306,150.77,150.73,5.40774306]
[1750160196945,5.40774306,150.77,150.73,12.04210725]
[1750160197120,38.04001147,150.78,150.74,5.40774306]
[1750160197513,12.04001147,150.78,150.73,6.63436419]
[1750160198044,12.04001147,150.78,150.73,5.40774306]
[1750160198224,5.40774306,150.76,150.69,42.59013806]
[1750160198421,5.40774306,150.77,150.73,5.40774306]
[1750160199127,12.04001147,150.78,150.74,5.40774306]
[1750160199815,5.40774306,150.77,150.72,6.63455715]
[1750160200013,6.63226841,150.78,150.72,12.04230021]
[1750160200215,5.40774306,150.76,150.72,12.04230021]
[1750160200463,12.04037147,150.77,150.73,5.40774306]
[1750160201949,5.40774306,150.76,150.72,5.40774306]
[1750160202143,5.40774306,150.76,150.71,5.40774306]
[1750160202334,6.63262841,150.77,150.72,5.40774306]
[1750160202647,5.40774306,150.76,150.72,5.40774306]
[1750160202846,5.40774306,150.75,150.71,5.40774306]
[1750160203641,5.40774306,150.75,150.69,32.63597042]
[1750160203840,6.63262841,150.77,150.7,5.40774306]
[1750160203841,5.40774306,150.74,150.7,5.40774306]
[1750160204021,5.40774306,150.74,150.7,12.04339565]
[1750160204414,12.04171569,150.74,150.7,5.40774306]
[1750160204627,5.40774306,150.73,150.69,5.40774306]
[1750160205021,5.40774306,150.73,150.68,12.73644362]
[1750160205241,5.40774306,150.72,150.68,11.50774306]
[1750160206021,12.0427477,150.72,150.68,11.50774306]
[1750160206234,5.40774306,150.71,150.68,6.1]
[1750160207133,5.40774306,150.7,150.63,32.08]
[1750160207351,6.63500464,150.72,150.65,5.40774306]
[1750160207352,5.40774306,150.69,150.65,5.40774306]
[1750160208155,12.0442328,150.69,150.65,5.40774306]
[1750160208320,5.40774306,150.68,150.64,5.40774306]
[1750160208523,6.63648974,150.69,150.64,5.40774306]
[1750160208754,26.0,150.71,150.66,5.40774306]
[1750160208924,31.40774306,150.71,150.66,5.40774306]
[1750160209562,38.04318839,150.71,150.66,5.40774306]
[1750160210952,38.04318839,150.71,150.65,6.63769986]
[1750160211126,5.40774306,150.7,150.66,5.40774306]
[1750160211541,5.40774306,150.68,150.64,6.63816506]
[1750160211752,32.63544533,150.71,150.64,12.04590812]
[1750160211964,5.40774306,150.69,150.64,12.04590812]
[1750160212734,32.6353562,150.71,150.65,5.40774306]
[1750160212956,5.40774306,150.7,150.66,5.40774306]
[1750160213146,6.6353562,150.71,150.66,5.40774306]
[1750160213352,5.40774306,150.7,150.66,5.40774306]
[1750160213531,12.04309926,150.71,150.66,5.40774306]
[1750160213847,12.04349992,150.7,150.66,5.40774306]
[1750160214436,32.63575686,150.7,150.64,12.04596885]
[1750160214854,5.40774306,150.69,150.64,12.04596885]
[1750160215650,5.40774306,150.69,150.65,5.40774306]
[1750160216229,5.40774306,150.7,150.65,12.04560743]
[1750160216627,12.04356057,150.7,150.65,12.04560743]
[1750160217962,12.04356057,150.7,150.66,5.40774306]
[1750160220168,12.04356057,150.7,150.66,12.04516879]
[1750160221483,12.04356057,150.7,150.66,5.40774306]
[1750160221778,5.40774306,150.7,150.66,12.04517959]
[1750160221941,26.0,150.72,150.69,5.40774306]
[1750160222140,38.04256542,150.72,150.66,6.63743653]
[1750160222338,5.40774306,150.7,150.66,12.04517959]
[1750160223279,5.40774306,150.71,150.67,5.40774306]
[1750160224204,32.63482236,150.72,150.67,5.40774306]
[1750160224402,1.5088,150.73,150.64,23.2341343]
[1750160224403,5.40774306,150.73,150.69,5.40774306]
[1750160224566,31.40774306,150.73,150.69,5.40774306]
[1750160224892,38.04223416,150.73,150.69,5.40774306]
[1750160225197,32.6344911,150.73,150.69,5.40774306]
[1750160225504,32.6344911,150.73,150.69,12.0437908]
[1750160225505,31.40774306,150.73,150.69,12.0437908]
[1750160226218,31.40774306,150.73,150.69,6.63604774]
[1750160226393,31.40774306,150.73,150.69,12.0437908]
[1750160226775,1.5617,150.77,150.7,5.40774306]
[1750160227111,5.40774306,150.75,150.71,5.40774306]
[1750160227489,5.40774306,150.74,150.7,6.63551046]
[1750160227789,26.0,150.76,150.7,6.63551046]
[1750160227790,38.04098308,150.76,150.71,5.40774306]
[1750160227985,13.60225814,150.77,150.72,5.40774306]
[1750160228180,6.96944306,150.77,150.73,5.40774306]
[1750160229601,6.96944306,150.77,150.73,12.04209631]
[1750160230380,5.40774306,150.77,150.73,12.04209631]
[1750160232100,12.04041006,150.77,150.73,5.40774306]
[1750160232297,5.40774306,150.75,150.71,5.40774306]
[1750160232484,5.40774306,150.76,150.72,5.40774306]
[1750160232688,12.04041006,150.77,150.72,5.40774306]
[1750160233418,12.04041006,150.77,150.72,12.04254309]
[1750160233616,5.40774306,150.77,150.73,5.40774306]
[1750160234701,12.04047983,150.77,150.73,5.40774306]
[1750160236628,6.63273677,150.77,150.73,5.40774306]
[1750160236795,12.04047983,150.77,150.73,5.40774306]
[1750160237721,12.04047983,150.77,150.73,12.04207686]
[1750160238425,12.04047983,150.77,150.73,5.40774306]
[1750160238621,12.04047983,150.77,150.72,6.63465177]
[1750160238829,12.04047983,150.77,150.73,12.04211064]
[1750160239497,12.04047983,150.77,150.73,5.40774306]
[1750160242122,12.04047983,150.77,150.71,6.63525977]
[1750160242416,12.04047983,150.77,150.73,5.40774306]
[1750160242625,6.63273677,150.77,150.74,5.40774306]
[1750160243200,38.04012288,150.78,150.74,5.40774306]
[1750160245027,5.40774306,150.75,150.7,12.69549849]
[1750160245205,5.40774306,150.75,150.71,5.40774306]
[1750160245412,12.04122959,150.76,150.7,12.69549849]
[1750160245617,12.04122959,150.76,150.72,5.40774306]
[1750160245826,12.04056074,150.77,150.73,5.40774306]
[1750160249353,6.63281768,150.77,150.74,5.40774306]
[1750160250210,12.04056074,150.77,150.73,5.40774306]
[1750160250419,5.40774306,150.76,150.72,5.40774306]
[1750160250935,5.40774306,150.75,150.71,5.40774306]
[1750160251713,12.04134304,150.75,150.71,5.40774306]
[1750160252949,6.63359998,150.75,150.72,5.40774306]
[1750160253175,12.04100007,150.76,150.72,5.40774306]
[1750160253461,12.04051717,150.77,150.72,5.40774306]
[1750160253668,12.04051717,150.77,150.73,5.40774306]
[1750160253849,6.63277411,150.77,150.73,5.40774306]
[1750160254777,12.04051717,150.77,150.73,5.40774306]
[1750160255441,5.40774306,150.76,150.72,5.40774306]
[1750160255746,5.40774306,150.75,150.71,5.40774306]
[1750160257173,5.40774306,150.76,150.72,5.40774306]
[1750160258138,12.04116741,150.76,150.72,5.40774306]
[1750160263144,5.40774306,150.75,150.71,5.40774306]
[1750160264394,5.40774306,150.74,150.7,6.06]
[1750160264764,12.04212241,150.73,150.7,6.06]
[1750160266053,5.40774306,150.72,150.7,6.06]
[1750160266846,6.6348206,150.72,150.7,6.06]
[1750160269271,5.40774306,150.74,150.7,11.46774306]
[1750160270593,12.04187651,150.74,150.7,11.46774306]
[1750160271786,12.04187651,150.74,150.7,6.06]
[1750160272087,5.40774306,150.73,150.7,6.06]
[1750160272589,12.04187651,150.74,150.7,6.06]
[1750160275372,5.40774306,150.73,150.7,6.06]
[1750160276005,12.04228712,150.73,150.7,6.06]
[1750160276986,5.40774306,150.72,150.7,6.06]
[1750160278190,12.04278776,150.72,150.7,6.06]
[1750160279084,12.04278776,150.72,150.68,5.40774306]
[1750160279289,12.04278776,150.72,150.66,6.63746183]
[1750160279501,12.04278776,150.72,150.68,5.40774306]
[1750160283707,5.40774306,150.73,150.68,5.40774306]
[1750160284308,5.40774306,150.73,150.67,6.63696163]
[1750160284509,5.40774306,150.73,150.68,5.40774306]
[1750160285493,6.63481953,150.72,150.68,5.40774306]
[1750160286115,12.04256259,150.72,150.67,5.40774306]
[1750160286936,12.04256259,150.72,150.68,5.40774306]
[1750160287130,6.63481953,150.72,150.69,5.40774306]
[1750160287330,12.04168229,150.74,150.7,5.40774306]
[1750160289323,5.40774306,150.73,150.69,5.40774306]
[1750160289707,5.40774306,150.72,150.66,6.63746183]
[1750160289895,5.40774306,150.72,150.67,5.40774306]
[1750160290398,5.40774306,150.73,150.69,5.40774306]
[1750160290764,6.63481953,150.72,150.69,5.40774306]
[1750160290921,6.63481953,150.72,150.69,3.47265179]
[1750160292231,26.0,150.75,150.67,6.63679627]
[1750160292232,6.63393923,150.74,150.68,3.47265179]
[1750160292551,3.47265179,150.73,150.68,3.47265179]
[1750160293123,6.6317395,150.79,150.72,3.47265179]
[1750160293326,6.6317395,150.79,150.69,18.933972]
[1750160293327,3.47265179,150.78,150.74,3.47265179]
[1750160293548,29.47265179,150.78,150.73,3.47265179]
[1750160293961,36.1050953,150.78,150.73,3.47265179]
[1750160294254,26.0,150.77,150.7,6.63570006]
[1750160294556,29.47265179,150.77,150.73,3.47265179]
[1750160294922,31.42315207,150.77,150.73,5.42315207]
[1750160295617,31.42315207,150.77,150.73,12.05747649]
[1750160296251,26.0,150.77,150.73,12.05747649]
[1750160296444,12.05559558,150.78,150.74,5.42315207]
[1750160298482,6.63244351,150.78,150.74,5.42315207]
[1750160299582,26.0,150.79,150.76,5.42315207]
[1750160300058,38.05490551,150.79,150.75,5.42315207]
[1750160300675,5.42315207,150.78,150.72,6.02]
[1750160300847,5.42315207,150.76,150.72,11.44315207]
[1750160301047,5.42315207,150.77,150.73,5.42315207]
[1750160301676,5.42315207,150.75,150.72,6.02]
[1750160302004,6.6327411,150.77,150.72,6.02]
[1750160302005,5.42315207,150.74,150.72,6.02]
[1750160302509,5.42315207,150.75,150.72,6.02]
[1750160302867,5.42315207,150.76,150.72,6.02]
[1750160303075,5.42315207,150.76,150.72,11.44315207]
[1750160303585,12.05653989,150.76,150.72,6.02]
[1750160304810,12.05669368,150.75,150.72,6.02]
[1750160305115,5.42315207,150.75,150.72,6.02]
[1750160306375,5.42315207,150.75,150.69,6.63614042]
[1750160306376,12.05684515,150.75,150.69,6.63614042]
[1750160306593,5.42315207,150.73,150.69,12.05929249]
[1750160306975,12.05756815,150.73,150.69,12.05929249]
[1750160307170,5.42315207,150.73,150.69,12.05929249]
[1750160311127,12.05725913,150.74,150.7,5.42315207]
[1750160311792,12.05725913,150.74,150.68,6.63658083]
[1750160312010,12.05725913,150.74,150.7,5.42315207]
[1750160314729,12.05725913,150.74,150.67,6.02]
[1750160314730,5.42315207,150.72,150.67,6.02]
[1750160314887,5.42315207,150.71,150.67,6.02]
[1750160315087,5.42315207,150.71,150.67,11.44315207]
[1750160315804,5.42315207,150.71,150.67,18.08011547]
[1750160315999,1.648,150.74,150.67,12.6569634]
[1750160316226,6.63375198,150.75,150.72,5.42315207]
[1750160316525,12.05690405,150.75,150.71,5.42315207]
[1750160317120,12.05690405,150.75,150.7,6.63553931]
[1750160317427,12.05690405,150.75,150.71,5.42315207]
[1750160318237,6.63322254,150.76,150.73,5.42315207]
[1750160318450,6.63322254,150.76,150.71,6.635174]
[1750160318936,12.05637461,150.76,150.72,5.42315207]
[1750160319115,12.0559489,150.77,150.73,5.42315207]
[1750160319650,29.51773893,150.79,150.75,5.42315207]
[1750160320210,30.09613868,150.79,150.75,5.42315207]
[1750160320425,24.67298661,150.79,150.76,5.42315207]
[1750160320736,18.04108686,150.79,150.76,5.42315207]
[1750160322633,18.04108686,150.79,150.75,6.63342805]
[1750160322836,18.04108686,150.79,150.76,5.42315207]
[1750160323941,24.67282933,150.79,150.76,5.42315207]
[1750160324944,24.67282933,150.79,150.75,5.42315207]
[1750160325149,18.04108686,150.79,150.75,5.42315207]
[1750160327935,18.04108686,150.79,150.75,12.05650524]
[1750160329531,18.04108686,150.79,150.76,5.42315207]
[1750160330348,18.04108686,150.79,150.77,5.42315207]
[1750160330932,18.04108686,150.79,150.76,6.63291944]
[1750160331431,18.04108686,150.79,150.77,5.42315207]
[1750160332555,18.04108686,150.79,150.78,5.42315207]
[1750160334230,18.04108686,150.79,150.75,6.63349917]
[1750160334434,18.04108686,150.79,150.78,5.42315207]
[1750160334634,18.04108686,150.79,150.77,5.42315207]
[1750160334934,23.46423893,150.79,150.75,12.05665124]
[1750160335266,23.46423893,150.79,150.76,5.42315207]
[1750160335267,18.04108686,150.79,150.76,5.42315207]
[1750160336427,18.04108686,150.79,150.75,6.63349917]
[1750160336830,18.04108686,150.79,150.77,5.42315207]
[1750160338231,18.04108686,150.79,150.75,6.63349917]
[1750160338435,18.04108686,150.79,150.76,5.42315207]
[1750160342440,18.04108686,150.79,150.75,6.63349917]
[1750160342640,18.04108686,150.79,150.76,5.42315207]
[1750160344142,18.04108686,150.79,150.78,5.42315207]
[1750160346566,18.04108686,150.79,150.78,12.0553314]
[1750160346863,18.04108686,150.79,150.78,5.42315207]
[1750160347071,18.04108686,150.79,150.78,12.0553314]
[1750160347288,18.04108686,150.79,150.78,5.42315207]
[1750160348587,18.04108686,150.79,150.75,6.63349917]
[1750160348893,23.46423893,150.79,150.75,12.05665124]
[1750160349280,18.04108686,150.79,150.75,12.05665124]
[1750160350817,30.09600915,150.79,150.75,5.42315207]
[1750160353080,30.09600915,150.79,150.74,6.63374658]
[1750160353378,30.09600915,150.79,150.75,5.42315207]
[1750160353560,30.09600915,150.79,150.73,5.96]
[1750160353876,5.42315207,150.78,150.74,5.42315207]
[1750160354054,24.67285708,150.79,150.74,5.42315207]
[1750160354256,5.42315207,150.78,150.74,5.42315207]
[1750160354463,30.09600915,150.79,150.75,5.42315207]
[1750160355479,30.09600915,150.79,150.74,5.42315207]
[1750160356990,12.05552224,150.78,150.74,5.42315207]
[1750160358383,6.63237017,150.78,150.74,5.42315207]
[1750160358566,12.05552224,150.78,150.74,5.42315207]
[1750160359768,12.05552224,150.78,150.73,12.59433711]
[1750160359961,12.05552224,150.78,150.74,5.42315207]
[1750160360686,30.09613178,150.79,150.75,5.42315207]
[1750160361258,24.67297971,150.79,150.75,5.42315207]
[1750160361455,24.67297971,150.79,150.74,6.63390345]
[1750160361656,30.09613178,150.79,150.75,5.42315207]
[1750160364367,18.04108686,150.79,150.75,12.05657819]
[1750160364567,18.04108686,150.79,150.77,5.42315207]
[1750160366491,18.04108686,150.79,150.77,12.05564197]
[1750160366693,18.04108686,150.79,150.78,5.42315207]
[1750160367558,18.04108686,150.79,150.78,12.0553314]
[1750160370663,18.04108686,150.79,150.78,6.63217933]
[1750160370860,18.04108686,150.79,150.76,6.63305916]
[1750160371074,18.04108686,150.79,150.76,12.05621123]
[1750160371874,18.04108686,150.79,150.77,5.42315207]
[1750160372686,18.04108686,150.79,150.76,6.63305916]
[1750160373318,18.04108686,150.79,150.76,5.42315207]
[1750160374188,18.04108686,150.79,150.75,6.63338715]
[1750160374189,30.09598566,150.79,150.75,5.42315207]
[1750160374564,30.09598566,150.79,150.74,12.05694407]
[1750160374783,5.42315207,150.77,150.73,12.59421968]
[1750160375492,5.42315207,150.77,150.73,18.01737175]
[1750160375975,6.63174673,150.79,150.73,18.01737175]
[1750160376178,5.42315207,150.78,150.73,18.01737175]
[1750160377286,12.05535377,150.78,150.73,18.01737175]
[1750160378390,12.05535377,150.78,150.74,5.42315207]
[1750160379682,6.6317395,150.79,150.74,5.42315207]
[1750160379890,5.42315207,150.78,150.74,5.42315207]
[1750160381795,12.05564158,150.78,150.74,5.42315207]
[1750160381976,12.05564158,150.78,150.73,11.38315207]
[1750160382184,5.42315207,150.77,150.73,11.38315207]
[1750160383795,12.05592801,150.77,150.73,11.38315207]
[1750160384699,5.42315207,150.75,150.73,5.96]
[1750160385892,12.05665489,150.75,150.73,5.96]
[1750160389826,12.05665489,150.75,150.68,1.5949]
[1750160389969,5.42315207,150.73,150.68,5.94]
[1750160390171,6.63350282,150.75,150.68,17.99963816]
[1750160390408,5.42315207,150.73,150.69,5.42315207]
[1750160391410,12.05760541,150.73,150.69,5.42315207]
[1750160391721,12.05760541,150.73,150.68,11.36315207]
[1750160392009,5.42315207,150.71,150.68,5.94]
[1750160392216,5.42315207,150.72,150.68,5.94]
[1750160392598,6.63445334,150.73,150.68,5.94]
[1750160392801,5.42315207,150.72,150.68,5.94]
[1750160393010,5.42315207,150.71,150.68,5.94]
[1750160393523,6.63570006,150.7,150.68,5.94]
[1750160394489,12.05856066,150.71,150.68,5.94]
[1750160396189,5.42315207,150.7,150.68,5.94]
[1750160396588,5.42315207,150.69,150.64,5.42315207]
[1750160396791,5.42315207,150.68,150.64,5.42315207]
[1750160397203,5.42315207,150.69,150.65,5.42315207]
[1750160397522,5.42315207,150.67,150.63,5.94]
[1750160397685,5.42315207,150.65,150.6,1.6622]
[1750160397889,26.0,150.69,150.6,1.6622]
[1750160397890,5.42315207,150.64,150.6,13.72543249]
[1750160398089,5.42315207,150.65,150.61,5.42315207]
[1750160398290,12.06034042,150.67,150.62,5.42315207]
[1750160398589,5.42315207,150.66,150.62,5.42315207]
[1750160399394,5.42315207,150.64,150.59,25.59332686]
[1750160399598,6.63762017,150.66,150.59,25.59332686]
[1750160399599,5.42315207,150.65,150.61,5.42315207]
[1750160401611,12.06107718,150.65,150.61,5.42315207]
[1750160402003,5.42315207,150.63,150.59,31.01647893]
[1750160402198,5.42315207,150.63,150.59,18.00366754]
[1750160402713,5.42315207,150.64,150.59,18.00366754]
[1750160402904,45.19802077,150.66,150.62,5.42315207]
[1750160403093,19.19802077,150.66,150.64,5.42315207]
[1750160403528,19.19802077,150.66,150.6,23.24026939]
[1750160403529,19.19802077,150.66,150.63,5.42315207]
[1750160403915,19.19802077,150.66,150.6,23.24026939]
[1750160404129,19.19802077,150.66,150.63,5.42315207]
[1750160404926,19.19802077,150.66,150.64,6.63834306]
[1750160405228,19.19802077,150.66,150.64,12.06149513]
[1750160407321,19.19802077,150.66,150.65,5.42315207]
[1750160409210,19.19802077,150.66,150.65,12.06105449]
[1750160414042,19.19802077,150.66,150.65,17.98105449]
[1750160414448,19.19802077,150.66,150.65,12.55790242]
[1750160414665,19.19802077,150.66,150.65,17.98105449]
[1750160421157,19.19802077,150.66,150.65,12.55790242]
[1750160421452,19.19802077,150.66,150.65,17.98105449]
[1750160422241,19.19802077,150.66,150.65,12.55790242]
[1750160422941,19.19802077,150.66,150.65,5.92]
[1750160423746,19.19802077,150.66,150.61,32.63966536]
[1750160423747,24.62117284,150.66,150.61,32.63966536]
[1750160423954,24.62117284,150.66,150.61,12.06281743]
[1750160424148,24.62117284,150.66,150.61,6.63966536]
[1750160424565,5.42315207,150.65,150.61,12.06281743]
[1750160425263,24.62117284,150.66,150.62,5.42315207]
[1750160425469,24.62117284,150.66,150.62,12.06205637]
[1750160425670,5.42315207,150.65,150.62,6.6389043]
[1750160428272,19.19802077,150.66,150.62,6.6389043]
[1750160428445,5.42315207,150.65,150.62,6.6389043]
[1750160430657,5.42315207,150.64,150.62,6.6389043]
[1750160431160,5.42315207,150.65,150.62,6.6389043]
[1750160434692,5.42315207,150.65,150.61,6.63966536]
[1750160434851,5.42315207,150.65,150.61,12.06281743]
[1750160435248,5.42315207,150.65,150.61,6.63966536]
[1750160435470,5.42315207,150.65,150.61,12.06281743]
[1750160435773,5.42315207,150.64,150.61,6.63966536]
[1750160437480,19.19802077,150.66,150.61,6.63966536]
[1750160437682,5.42315207,150.65,150.61,12.06281743]
[1750160437858,5.42315207,150.64,150.61,6.63966536]
[1750160438054,5.42315207,150.62,150.55,57.72712974]
[1750160438268,25.83554892,150.66,150.57,5.42315207]
[1750160438269,5.42315207,150.61,150.57,5.42315207]
[1750160438582,5.42315207,150.63,150.59,5.42315207]
[1750160438886,25.83554892,150.66,150.61,5.42315207]
[1750160438887,5.42315207,150.65,150.61,5.42315207]
[1750160439065,5.42315207,150.65,150.61,12.06260342]
[1750160439249,24.62117284,150.66,150.62,5.42315207]
[1750160439949,24.62117284,150.66,150.57,35.53104945]
[1750160439950,19.19802077,150.66,150.59,6.64054718]
[1750160440460,5.42315207,150.64,150.59,12.06369925]
[1750160440971,5.42315207,150.64,150.6,5.42315207]
[1750160441280,5.42315207,150.63,150.59,5.42315207]
[1750160441956,5.42315207,150.63,150.58,6.64098817]
[1750160442157,5.42315207,150.63,150.59,5.42315207]
[1750160442360,5.42315207,150.63,150.57,6.64142923]
[1750160442561,12.06201771,150.63,150.58,5.42315207]
[1750160442759,5.42315207,150.62,150.58,5.42315207]
[1750160442964,5.42315207,150.61,150.57,12.0645813]
[1750160443481,5.42315207,150.61,150.57,5.42315207]
[1750160443683,5.42315207,150.6,150.56,12.56174998]
[1750160443885,5.42315207,150.6,150.56,17.9850209]
[1750160444290,5.42315207,150.6,150.56,12.56186883]
[1750160444782,5.42315207,150.6,150.56,17.9850209]
[1750160445583,5.42315207,150.6,150.56,12.56186883]
[1750160445766,6.63981394,150.61,150.56,17.9850209]
[1750160445969,5.42315207,150.6,150.56,5.92]
[1750160446290,5.42315207,150.58,150.56,5.92]
[1750160447087,5.42315207,150.59,150.56,5.92]
[1750160447593,16.5991634,150.61,150.56,5.92]
[1750160447882,6.63922453,150.62,150.56,5.92]
[1750160447883,5.42315207,150.59,150.56,5.92]
[1750160448057,6.63922453,150.62,150.56,5.92]
[1750160448258,5.42315207,150.59,150.56,5.92]
[1750160449895,6.64004439,150.61,150.56,17.9850205]
[1750160450075,5.42315207,150.59,150.56,5.92]
[1750160450774,5.42315207,150.6,150.56,17.98501134]
[1750160451180,5.42315207,150.6,150.56,12.56185927]
[1750160451394,5.42315207,150.6,150.56,11.34315207]
[1750160451756,5.42315207,150.6,150.56,17.98493725]
[1750160451962,36.0000919,150.63,150.57,5.42315207]
[1750160451963,12.06253139,150.62,150.57,5.42315207]
[1750160452160,5.42315207,150.61,150.57,5.42315207]
[1750160452373,6.63937932,150.62,150.56,17.98493725]
[1750160452374,5.42315207,150.6,150.56,17.98493725]